fUST/lending_fUST_20240818
["ID","MTS","AMOUNT","RATE_DAILY","PERIOD"]
[335164517,1723913584368,193.53718372,0.00014519,2]
[335164518,1723913590193,154.71377951,0.00014519,2]
[335164519,1723913591879,850.67011646,0.00014519,2]
[335164520,1723913593616,1765.95777024,0.00014519,2]
[335164521,1723913596357,981.21078068,0.00014519,2]
[335164522,1723913604761,188.52033983,0.00014519,2]
[335164523,1723913605795,341.43157984,0.00014519,2]
[335164525,1723913607737,665.31716187,0.00014519,2]
[335164526,1723913611866,942.65431698,0.00014519,3]
[335164527,1723913612031,585.82883324,0.00014519,2]
[335164528,1723913613880,157.06256772,0.00014519,2]
[335164529,1723913614656,223.17571711,0.00014519,2]
[335164530,1723913616808,154.69061876,0.00014519,2]
[335164531,1723913621294,452.41866698,0.00014519,2]
[335164532,1723913626354,281.82485152,0.00014519,2]
[335164533,1723913627241,209.98113273,0.00014519,2]
[335164534,1723913628583,154.7755384,0.00014519,2]
[335164535,1723913628865,157.06256772,0.00014519,2]
[335164536,1723913628917,154.69061876,0.00014519,4]
[335164537,1723913629433,330.05343314,0.00014519,2]
[335164538,1723913629961,154.9129348,0.00014519,2]
[335164539,1723913630114,180.75332185,0.00014519,2]
[335164540,1723913633851,174.7908282,0.00014519,2]
[335164541,1723913636362,155.29231191,0.00014519,2]
[335164542,1723913636392,196.46592906,0.00014519,2]
[335164543,1723913637505,154.71377951,0.00014519,2]
[335164544,1723913643951,154.69833824,0.00014519,4]
[335164545,1723913644526,2141.98037149,0.00014519,2]
[335164546,1723913646307,16314.05071217,0.00014519,2]
[335164547,1723913647438,3091.94332575,0.00014519,2]
[335164548,1723913648002,239.30896493,0.00014519,2]
[335164549,1723913648407,446.27394661,0.00014519,2]
[335164550,1723913659997,156.82259234,0.00014519,2]
[335164551,1723913663843,174.7908282,0.00014519,2]
[335164552,1723913667875,850.67011646,0.00014519,2]
[335164553,1723913676093,190.03280971,0.00014519,2]
[335164554,1723913710690,154.69061876,0.00014519,2]
[335164555,1723913713779,188.52033983,0.00014519,2]
[335164556,1723913720697,664.76286283,0.00014519,2]
[335164558,1723913728153,214.37140185,0.00014519,2]
[335164559,1723913744243,188.52033983,0.00014519,2]
[335164560,1723913752432,16314.05071217,0.00014519,2]
[335164561,1723913753102,189.75422647,0.00014519,2]
[335164562,1723913755927,3091.94332575,0.00014519,2]
[335164563,1723913763384,850.67011646,0.00014519,2]
[335164564,1723913772869,174.7908282,0.00014519,2]
[335164565,1723913807715,159.33628918,0.00014519,2]
[335164566,1723913854393,850.67011646,0.00014519,2]
[335164567,1723913860434,479.78275933,0.00014519,2]
[335164568,1723913864282,174.7908282,0.00014519,2]
[335164569,1723913873306,1469.58613608,0.00014519,2]
[335164570,1723913893877,174.7908282,0.00014519,2]
[335164571,1723913942402,464.65554805,0.00014519,2]
[335164572,1723913997862,174.7908282,0.00014519,2]
[335164573,1723914020838,509.029825,0.00014247,2]
[335164575,1723914116886,174.7908282,0.00014519,2]
[335164576,1723914131885,174.7908282,0.00014519,2]
[335164580,1723914255879,174.7908282,0.00014519,2]
[335164581,1723914290456,3091.50705433,0.00014519,2]
[335164582,1723914327359,3789.92883134,0.00014519,2]
[335164583,1723914330678,-154.69833824,0.00017598,2]
[335164584,1723914330700,-237.3933585,0.00017598,2]
[335164585,1723914330721,-154.80649189,0.00017737,2]
[335164586,1723914330844,-300.0,0.00018251,2]
[335164587,1723914330866,-240.0,0.00018251,2]
[335164588,1723914330887,-687.560121,0.00018252,2]
[335164589,1723914330907,-466.25917629,0.00018252,2]
[335164590,1723914357121,-277.56051111,0.00018252,2]
[335164591,1723914357143,-166.302902,0.00018348,2]
[335164592,1723914357169,-166.302902,0.00018666,2]
[335164593,1723914357191,-166.302902,0.00018985,2]
[335164594,1723914357211,-177.352897,0.00019178,2]
[335164595,1723914357233,-236.8535755,0.00019178,2]
[335164596,1723914357254,-166.285905,0.00019178,2]
[335164597,1723914357276,-166.302902,0.00019304,2]
[335164598,1723914357301,-754.12857659,0.00019988,2]
[335164599,1723914426125,-166.666666,0.00019134,2]
[335164600,1723914426148,-166.666666,0.00019206,2]
[335164601,1723914426170,-166.666666,0.00019277,2]
[335164602,1723914426197,-166.666666,0.00019348,2]
[335164603,1723914426219,-7.33413471,0.00019419,2]
[335164604,1723914435102,-1418.11976372,0.00018853,2]
[335164605,1723914437131,-26.72686928,0.00018853,2]
[335164606,1723914437159,-159.33253129,0.00019419,2]
[335164607,1723914437188,-166.666666,0.00019491,2]
[335164608,1723914437211,-166.666666,0.00019562,2]
[335164609,1723914437236,-166.666666,0.00019633,2]
[335164610,1723914437261,-166.666666,0.00019704,2]
[335164611,1723914437284,-166.666666,0.00019776,2]
[335164612,1723914437307,-166.666666,0.00019847,2]
[335164613,1723914437330,-166.666666,0.00019918,2]
[335164614,1723914437356,-300.0,0.00019987,2]
[335164615,1723914437378,-3861.1747377,0.00019988,2]
[335164616,1723914451110,-894.75298116,0.00019988,2]
[335164623,1723914582752,256.56226415,0.00014247,2]
[335164624,1723914582774,114.46366785,0.00014247,2]
[335164625,1723914622636,114.20149056,0.00017269,2]
[335164626,1723914622659,50.95694591,0.00017269,2]
[335164650,1723914632429,-178.077466,0.0001899,2]
[335164652,1723914632439,-178.077466,0.00019005,2]
[335164654,1723914632448,-117.67921827,0.00019021,2]
[335164670,1723914638675,-60.39824773,0.00019021,2]
[335164671,1723914638685,-178.077466,0.00019037,2]
[335164672,1723914638694,-178.077466,0.00019053,2]
[335164673,1723914638703,-178.077466,0.00019069,2]
[335164674,1723914638713,-178.077466,0.00019085,2]
[335164675,1723914638722,-96.93603201,0.00019987,2]
[335164743,1723914641509,-203.06396799,0.00019987,2]
[335164744,1723914641603,-6091.88929107,0.00019988,2]
[335164745,1723914641618,-1969.98470207,0.00019988,2]
[335164746,1723914641628,-154.69833824,0.00019988,2]
[335164747,1723914641637,-500.0,0.00019989,2]
[335164748,1723914641646,-307.67373515,0.00019989,2]
[335164749,1723914641655,-500.0,0.00019989,2]
[335164750,1723914641666,-500.0,0.00019989,2]
[335164751,1723914641675,-500.0,0.00019989,2]
[335164752,1723914641685,-471.10482351,0.00019989,2]
[335164753,1723914641697,-28.89517649,0.00019989,2]
[335164754,1723914641707,-500.0,0.00019989,2]
[335164755,1723914641716,-500.0,0.00019989,2]
[335164756,1723914641727,-273.82952642,0.00019989,2]
[335164757,1723914641739,-500.0,0.00019989,2]
[335164758,1723914641750,-154.94359709,0.00019989,2]
[335164759,1723914641764,-345.05640291,0.00019989,2]
[335164760,1723914641776,-500.0,0.00019989,2]
[335164761,1723914641786,-166.666666,0.00019989,2]
[335164762,1723914641796,-360.85,0.0001999,3]
[335164763,1723914641808,-180.42,0.0001999,3]
[335164764,1723914641818,-541.31,0.0001999,3]
[335164765,1723914641828,-24784.2795833,0.0001999,2]
[335164766,1723914641838,-500.0,0.00019999,2]
[335164767,1723914641847,-500.0,0.00019999,2]
[335164768,1723914641856,-186.4671691,0.00019999,2]
[335164769,1723914641866,-500.0,0.00019999,2]
[335164770,1723914641876,-500.0,0.00019999,2]
[335164771,1723914641885,-500.0,0.00019999,2]
[335164772,1723914641895,-500.0,0.00019999,2]
[335164773,1723914641905,-500.0,0.00019999,2]
[335164774,1723914641914,-500.0,0.00019999,2]
[335164775,1723914641924,-500.0,0.00019999,2]
[335164776,1723914641933,-223.60601596,0.00019999,2]
[335164777,1723914641943,-185.89434159,0.0002,2]
[335164778,1723914641954,-126439.75871165,0.0002,2]
[335164779,1723914641965,-1260.37140197,0.0002,2]
[335164780,1723914641975,-10506.43940705,0.0002,2]
[335164781,1723914641984,-156.6016576,0.0002,2]
[335164782,1723914641994,-150.112233,0.0002,2]
[335164783,1723914642003,-2000.0,0.0002,2]
[335164784,1723914642012,-2000.0,0.0002,2]
[335164785,1723914642022,-2000.0,0.0002,2]
[335164786,1723914642033,-776.0,0.0002,2]
[335164787,1723914642043,-2000.0,0.0002,2]
[335164788,1723914642052,-2000.0,0.0002,2]
[335164789,1723914642061,-812.0,0.0002,2]
[335164790,1723914642070,-150.112233,0.0002,2]
[335164791,1723914642079,-166.666666,0.0002006,2]
[335164792,1723914642089,-166.666666,0.00020132,2]
[335164793,1723914642098,-175.007577,0.000203,2]
[335164794,1723914642107,-1001.014073,0.000203,2]
[335164795,1723914642117,-150.5,0.00020347,120]
[335164796,1723914642126,-257.33,0.00020347,120]
[335164797,1723914642137,-150.5,0.00020357,120]
[335164798,1723914642146,-150.5,0.00020357,120]
[335164799,1723914642155,-257.64,0.00020357,120]
[335164800,1723914642164,-203.60517816,0.00020366,2]
[335164801,1723914642174,-5991.61957051,0.00020366,2]
[335164802,1723914642183,-37176.419375,0.00020367,2]
[335164803,1723914642193,-150.5,0.00020367,120]
[335164804,1723914642203,-150.5,0.00020367,120]
[335164805,1723914642213,-150.5,0.00020367,120]
[335164806,1723914642222,-200.0,0.00020373,2]
[335164807,1723914642231,-200.0,0.00020373,2]
[335164808,1723914642240,-200.0,0.00020373,2]
[335164809,1723914642253,-146813.0,0.00020377,2]
[335164810,1723914642262,-150.112233,0.000204,3]
[335164811,1723914642272,-150.112233,0.000204,4]
[335164812,1723914642281,-150.112233,0.000204,4]
[335164813,1723914642292,-150.112233,0.000206,2]
[335164814,1723914642301,-509.029825,0.00020707,2]
[335164815,1723914642311,-371.025932,0.00020707,2]
[335164816,1723914642322,-150.112233,0.000208,3]
[335164817,1723914642333,-150.112233,0.000208,4]
[335164818,1723914642342,-150.112233,0.000208,3]
[335164819,1723914642351,-465.02761887,0.0002083,2]
[335164820,1723914642361,-150.112233,0.000209,2]
[335164821,1723914642370,-154.71377951,0.00020932,2]
[335164822,1723914642379,-12392.1397917,0.0002099,3]
[335164823,1723914642388,-258.43524236,0.00021,2]
[335164824,1723914642398,-5709.11677535,0.00021,2]
[335164825,1723914642407,-10143.35786705,0.00021,2]
[335164826,1723914642417,-232.89970429,0.00021,2]
[335164827,1723914642427,-504.17158941,0.000212,2]
[335164828,1723914642437,-150.112233,0.000212,5]
[335164829,1723914642446,-150.112233,0.000212,4]
[335164830,1723914642455,-150.112233,0.000212,5]
[335164831,1723914642465,-150.112233,0.000212,5]
[335164832,1723914642474,-721.7,0.0002136,3]
[335164833,1723914642483,-360.84,0.0002136,3]
[335164834,1723914642492,-150.112233,0.000215,2]
[335164835,1723914642502,-150.112233,0.000216,4]
[335164836,1723914642512,-150.112233,0.000216,2]
[335164837,1723914642522,-150.112233,0.000216,2]
[335164838,1723914642531,-400.0,0.00021742,2]
[335164839,1723914642540,-201.35770432,0.00021742,2]
[335164840,1723914642550,-200.0,0.00021742,2]
[335164841,1723914642560,-150.112233,0.000218,2]
[335164842,1723914642569,-416.29774386,0.00021918,2]
[335164843,1723914642579,-420.0,0.00021986,2]
[335164844,1723914642588,-270.7098517,0.00022,2]
[335164845,1723914642598,-160.78322974,0.00022,2]
[335164846,1723914642607,-150.112233,0.00022,2]
[335164847,1723914642616,-150.112233,0.00022,2]
[335164848,1723914642625,-150.112233,0.00022,5]
[335164849,1723914642634,-302.45563732,0.00022,2]
[335164850,1723914642644,-150.112233,0.000221,3]
[335164851,1723914642654,-882.69740535,0.0002217,2]
[335164852,1723914642663,-302.45563732,0.0002222,2]
[335164853,1723914642673,-1313.38444652,0.000223,2]
[335164854,1723914642682,-150.112233,0.000224,3]
[335164855,1723914642691,-150.112233,0.000224,3]
[335164856,1723914642701,-150.112233,0.000224,4]
[335164857,1723914642711,-150.112233,0.000224,5]
[335164858,1723914642721,-302.45563732,0.0002244,2]
[335164859,1723914642730,-302.45563732,0.0002266,2]
[335164860,1723914642740,-150.112233,0.000227,3]
[335164861,1723914642813,-150.112233,0.000228,4]
[335164862,1723914642829,-158.000107,0.000228,2]
[335164863,1723914642838,-150.112233,0.000228,3]
[335164864,1723914642849,-150.112233,0.000228,4]
[335164865,1723914642858,-302.45563732,0.0002288,2]
[335164866,1723914642867,-154.69833824,0.00022935,2]
[335164867,1723914642876,-335.40912,0.0002299,2]
[335164868,1723914642886,-335.40912,0.0002299,2]
[335164869,1723914642896,-151.0,0.0002299,7]
[335164870,1723914642905,-151.0,0.0002299,7]
[335164871,1723914642915,-12392.1397917,0.0002299,3]
[335164873,1723914642924,-35621.0,0.00023,2]
[335164874,1723914642933,-239.43031736,0.00023,2]
[335164875,1723914642942,-11396.33767732,0.00023,2]
[335164876,1723914642952,-1000.0,0.00023,23]
[335164877,1723914642961,-234.067036,0.00023,7]
[335164878,1723914642971,-234.067036,0.00023,7]
[335164879,1723914642981,-805.26683865,0.00023,2]
[335164880,1723914642991,-165.0,0.00023,2]
[335164881,1723914643000,-151.0,0.00023,7]
[335164882,1723914643010,-3057.83719905,0.00023019,60]
[335164883,1723914643019,-154.80649189,0.00023019,2]
[335164884,1723914643029,-453.68345598,0.000231,4]
[335164885,1723914643041,-150.112233,0.000232,4]
[335164886,1723914643052,-150.112233,0.000232,3]
[335164887,1723914643062,-150.112233,0.000232,3]
[335164888,1723914643073,-150.112233,0.000232,2]
[335164889,1723914643082,-453.68345598,0.0002332,4]
[335164891,1723914643091,-453.68345598,0.0002354,4]
[335164893,1723914643100,-150.112233,0.000236,4]
[335164895,1723914643109,-150.112233,0.000236,4]
[335164898,1723914643120,-150.112233,0.000236,2]
[335164901,1723914643131,-335.40912,0.000236,2]
[335164904,1723914643141,-335.40912,0.000236,2]
[335164907,1723914643151,-151.0,0.000236,7]
[335164909,1723914643161,-151.0,0.000236,7]
[335164911,1723914643172,-150.112233,0.000236,2]
[335164912,1723914643184,-10339.94871612,0.00023609,2]
[335164913,1723914643195,-5243.39070357,0.00023629,2]
[335164915,1723914643205,-5243.39070357,0.00023629,2]
[335164917,1723914643214,-12392.1397917,0.00023646,3]
[335164919,1723914643224,-600.0,0.00023746,2]
[335164921,1723914643235,-1110.60501038,0.00023747,2]
[335164922,1723914643247,-595.67012949,0.0002376,4]
[335164923,1723914643264,-154.8064888,0.0002376,2]
[335164924,1723914643275,-271.4297146,0.0002376,2]
[335164925,1723914643287,-154.69833824,0.00023777,2]
[335164926,1723914643298,-435.0,0.00023785,2]
[335164927,1723914643310,-154.69833824,0.0002391,2]
[335164928,1723914643322,-782.32633188,0.00023968,2]
[335164929,1723914643333,-200.0,0.00023973,2]
[335164930,1723914643344,-200.0,0.00023973,2]
[335164931,1723914643353,-200.0,0.00023973,2]
[335164932,1723914643364,-198.27553857,0.00023973,2]
[335164933,1723914643374,-277.59237245,0.00023979,2]
[335164934,1723914643385,-1857.35257927,0.00023979,2]
[335164935,1723914643395,-1857.35257927,0.00023979,2]
[335164936,1723914643405,-335.40912,0.0002398,2]
[335164937,1723914643416,-335.40912,0.0002398,2]
[335164938,1723914643428,-151.0,0.0002398,7]
[335164939,1723914643439,-290.803785,0.0002398,7]
[335164940,1723914643451,-335.40912,0.0002399,2]
[335164941,1723914643464,-335.40912,0.0002399,2]
[335164942,1723914643474,-151.0,0.0002399,7]
[335164943,1723914643484,-234.067036,0.0002399,7]
[335164944,1723914643493,-234.067036,0.0002399,7]
[335164945,1723914643502,-111529.258125,0.0002399,3]
[335164946,1723914643512,-151.0,0.0002399,7]
[335164947,1723914643521,-155.16396389,0.00024,30]
[335164948,1723914643531,-96072.1913306,0.00024,60]
[335165025,1723914653052,155.90530926,0.0001501,2]
[335165027,1723914660184,38.13774483,0.00017269,2]
[335165028,1723914660206,185.30878681,0.00017269,2]
[335165029,1723914668596,59.69121319,0.00017269,2]
[335165030,1723914716093,3733.22866537,0.00014245,2]
[335165031,1723914730895,6127.75512258,0.00014245,2]
[335165032,1723914736711,307.43932844,0.00014519,2]
[335165033,1723914738485,2851.27228623,0.00014519,2]
[335165034,1723914740590,261.29353764,0.00014519,2]
[335165035,1723914755846,230.7557701,0.00014519,2]
[335165053,1723915067365,478.260601,0.00014247,2]
[335165074,1723915291617,10365.22723124,9e-05,2]
[335165076,1723915313641,201.35770432,0.00014519,2]
[335165083,1723915559145,-1881.198292,0.00017066,2]
[335165084,1723915559166,-35.9519194,0.00017166,2]
[335165091,1723915629127,-215.64289125,0.00017166,2]
[335165092,1723915629149,-267.28219318,0.00017266,2]
[335165093,1723915629171,-3057.83719905,0.00017598,2]
[335165094,1723915629192,-534.431533,0.0001886,2]
[335165095,1723915629213,-1231.70425246,0.00018862,2]
[335165097,1723915633021,386.026019,0.00014247,2]
[335165098,1723915638141,-934.24469028,0.00018862,2]
[335165102,1723915645116,-154.69833824,0.00017166,2]
[335165103,1723915645139,-237.60286052,0.00018862,2]
[335165104,1723915653141,-596.44819674,0.00018862,2]
[335165105,1723915653163,-176.116073,0.00018862,2]
[335165106,1723915653185,-510.01474455,0.00018872,2]
[335165138,1723915727071,5050.03454137,0.0001,2]
[335165141,1723915753129,-1539.53197117,0.000176,2]
[335165142,1723915755143,-240.1,0.000176,2]
[335165143,1723915756118,-210.99393726,0.000176,2]
[335165147,1723915807657,172.16658063,0.000176,2]
[335165148,1723915807680,15.30985828,0.000176,2]
[335165177,1723915832964,-503.63315445,0.00018872,2]
[335165178,1723915832974,-164.688701,0.00018913,2]
[335165179,1723915832983,-164.688701,0.00018979,2]
[335165180,1723915832992,-164.688701,0.00019045,2]
[335165181,1723915833002,-186.48818551,0.000191,2]
[335165182,1723915833012,-164.688701,0.00019111,2]
[335165183,1723915833021,-164.688701,0.00019176,2]
[335165184,1723915833032,-162.972936,0.00019178,2]
[335165185,1723915833041,-164.688701,0.00019242,2]
[335165186,1723915833051,-164.688701,0.00019308,2]
[335165187,1723915833060,-164.688701,0.00019373,2]
[335165188,1723915833070,-164.688701,0.00019439,2]
[335165189,1723915833080,-164.688701,0.00019505,2]
[335165190,1723915833090,-164.688701,0.0001957,2]
[335165191,1723915833100,-465.05655055,0.00019627,2]
[335165192,1723915833110,-164.688701,0.00019636,2]
[335165193,1723915833120,-164.688701,0.00019702,2]
[335165194,1723915833130,-164.688701,0.00019768,2]
[335165195,1723915833139,-164.688701,0.00019833,2]
[335165196,1723915833148,-164.688701,0.00019899,2]
[335165197,1723915833159,-156.6016576,0.0002,2]
[335165198,1723915833175,-154.80649189,0.0002,2]
[335165199,1723915833184,-271.4297146,0.00020059,2]
[335165200,1723915833197,-154.69833824,0.0002008,2]
[335165201,1723915833207,-154.8064888,0.0002008,2]
[335165202,1723915833217,-300.0,0.00020086,2]
[335165203,1723915833226,-53.95401237,0.00020086,2]
[335165218,1723915838653,-381.04598763,0.00020086,2]
[335165220,1723915838665,-1110.60501038,0.00020092,2]
[335165223,1723915838676,-277.59237245,0.00020094,2]
[335165224,1723915838687,-465.00282753,0.00020609,2]
[335165225,1723915838697,-478.260601,0.00020707,2]
[335165226,1723915838709,-386.026019,0.00020707,2]
[335165227,1723915838720,-7079.51870815,0.00020822,2]
[335165228,1723915838732,-207.15720901,0.00020832,4]
[335165229,1723915838741,-150.112233,0.000209,5]
[335165230,1723915838751,-150.112233,0.000209,2]
[335165231,1723915838760,-150.112233,0.000209,3]
[335165232,1723915838770,-500.0,0.00020921,2]
[335165233,1723915838779,-530.42550293,0.00020921,2]
[335165234,1723915838789,-19083.9574052,0.00020922,3]
[335165235,1723915838798,-585.05,0.00020922,3]
[335165236,1723915838808,-376.11,0.00020922,3]
[335165237,1723915838817,-188.05,0.00020922,3]
[335165238,1723915838826,-564.19,0.00020922,3]
[335165239,1723915838836,-480.52701837,0.00020931,2]
[335165240,1723915838846,-500.0,0.00020931,2]
[335165241,1723915838856,-500.0,0.00020931,2]
[335165242,1723915838866,-500.0,0.00020931,2]
[335165243,1723915838875,-500.0,0.00020931,2]
[335165244,1723915838885,-500.0,0.00020931,2]
[335165245,1723915838894,-500.0,0.00020931,2]
[335165246,1723915838903,-500.0,0.00020931,2]
[335165247,1723915838913,-500.0,0.00020931,2]
[335165248,1723915838932,-500.0,0.00020931,2]
[335165249,1723915838942,-456.52421118,0.00020931,2]
[335165250,1723915838951,-1260.37140197,0.00020932,2]
[335165251,1723915838961,-126439.75871165,0.00020932,2]
[335165252,1723915838970,-10506.43940705,0.00020932,2]
[335165253,1723915838979,-258.43524236,0.00021,2]
[335165254,1723915838988,-5709.11677535,0.00021,2]
[335165255,1723915838997,-10143.35786705,0.00021,2]
[335165256,1723915839007,-232.89970429,0.00021,2]
[335165257,1723915839016,-504.17158941,0.000212,2]
[335165258,1723915839028,-150.112233,0.000213,5]
[335165259,1723915839040,-150.112233,0.000213,3]
[335165260,1723915839051,-150.112233,0.000213,2]
[335165261,1723915839064,-150.112233,0.000217,2]
[335165262,1723915839073,-150.112233,0.000217,5]
[335165263,1723915839084,-150.112233,0.000217,4]
[335165264,1723915839093,-416.29774386,0.00021918,2]
[335165265,1723915839102,-160.78322974,0.00022,2]
[335165266,1723915839111,-154.69833824,0.00022,2]
[335165267,1723915839121,-270.7098517,0.00022,2]
[335165268,1723915839131,-165.0,0.00022,2]
[335165269,1723915839140,-302.42545213,0.00022,2]
[335165270,1723915839150,-302.45563732,0.00022,2]
[335165271,1723915839159,-420.0,0.00022095,2]
[335165272,1723915839169,-150.112233,0.000221,5]
[335165273,1723915839178,-882.69740535,0.0002217,2]
[335165274,1723915839188,-150.112233,0.000222,4]
[335165275,1723915839208,-150.112233,0.000222,3]
[335165276,1723915839218,-302.42545213,0.0002222,2]
[335165277,1723915839228,-302.45563732,0.0002222,2]
[335165278,1723915839238,-1170.1,0.00022292,3]
[335165279,1723915839249,-752.22,0.00022292,3]
[335165280,1723915839258,-376.1,0.00022292,3]
[335165281,1723915839268,-1313.38444652,0.000223,2]
[335165282,1723915839278,-150.112233,0.000224,3]
[335165283,1723915839288,-302.42545213,0.0002244,2]
[335165284,1723915839299,-302.45563732,0.0002244,2]
[335165285,1723915839311,-150.112233,0.000226,4]
[335165286,1723915839428,-150.112233,0.000226,3]
[335165287,1723915839449,-302.42545213,0.0002266,2]
[335165288,1723915839461,-302.45563732,0.0002266,2]
[335165289,1723915839472,-150.112233,0.000228,4]
[335165290,1723915839482,-154.71377951,0.00022863,2]
[335165291,1723915839493,-151.34855946,0.0002288,2]
[335165292,1723915839503,-302.4556373,0.0002288,2]
[335165293,1723915839514,-150.112233,0.00023,5]
[335165294,1723915839523,-150.112233,0.00023,4]
[335165295,1723915839533,-239.43031736,0.00023,2]
[335165296,1723915839542,-11396.33767732,0.00023,2]
[335165297,1723915839551,-165.0,0.00023014,2]
[335165298,1723915839561,-150.112233,0.000232,5]
[335165299,1723915839570,-10339.94871612,0.00023382,2]
[335165300,1723915839580,-150.112233,0.000234,4]
[335165301,1723915839590,-150.112233,0.000234,5]
[335165302,1723915839599,-9541.97870258,0.00023402,3]
[335165303,1723915839609,-5243.39070357,0.00023418,2]
[335165304,1723915839618,-150.112233,0.000236,3]
[335165305,1723915839628,-782.32633188,0.00023736,2]
[335165306,1723915839641,-782.32633188,0.00023736,2]
[335165307,1723915839651,-150.112233,0.000238,3]
[335165308,1723915839660,-150.112233,0.000238,3]
[335165309,1723915839672,-6520.5953348,0.000238,2]
[335165310,1723915839683,-200.0,0.00023873,2]
[335165311,1723915839692,-19083.9574052,0.0002388,3]
[335165312,1723915839702,-88888.0,0.0002389,3]
[335165313,1723915839711,-150.112233,0.000239,4]
[335165314,1723915839722,-200.0,0.00023973,2]
[335165315,1723915839732,-9541.97870258,0.00023979,3]
[335165316,1723915839741,-19083.9574052,0.0002398,3]
[335165317,1723915839752,-203.60517816,0.00023989,2]
[335165318,1723915839763,-5991.61957051,0.00023989,2]
[335165319,1723915839772,-192.71,0.0002399,120]
[335165320,1723915839782,-95419.7870258,0.0002399,3]
[335165321,1723915839791,-151.0,0.0002399,7]
[335165322,1723915839801,-185839.88390631,0.00024,60]
[335165323,1723915840031,-1138.33566,0.00024,60]
[335165347,1723915840965,-675.33985701,0.000239,2]
[335165348,1723915840974,-2884.45786667,0.00024,60]
[335165349,1723915840986,-5725.75355192,0.00024,60]
[335165350,1723915841001,-1263.96000776,0.00024,60]
[335165351,1723915841012,-2692.20000003,0.00024,60]
[335165352,1723915841023,-2413.3270512,0.00024,60]
[335165353,1723915841035,-6633.61660857,0.00024,60]
[335165354,1723915841046,-274902.62370449,0.00024,60]
[335165355,1723915841055,-318.80465857,0.00024,2]
[335165356,1723915841065,-154.69833824,0.00024,30]
[335165357,1723915841074,-151.0,0.00024,7]
[335165358,1723915841084,-151.0,0.00024,7]
[335165359,1723915841094,-335.40912,0.00024,2]
[335165360,1723915841103,-335.40912,0.00024,2]
[335165361,1723915841113,-234.067036,0.00024,7]
[335165362,1723915841122,-234.067036,0.00024,7]
[335165363,1723915841130,-96072.1913306,0.00024,60]
[335165364,1723915841141,-15063.35800914,0.00024,30]
[335165474,1723915843862,-3099.53157799,0.00024,30]
[335165475,1723915843872,-151.0,0.00024,7]
[335165476,1723915843882,-151.0,0.00024,7]
[335165477,1723915843892,-150.112233,0.000242,2]
[335165478,1723915843901,-150.112233,0.000242,3]
[335165479,1723915843911,-150.112233,0.000243,3]
[335165480,1723915843920,-587.0,0.00024304,2]
[335165481,1723915843930,-150.112233,0.000246,2]
[335165482,1723915843940,-150.112233,0.000246,5]
[335165483,1723915843949,-58.80725701,0.00024658,2]
[335165485,1723915844321,-141.19274299,0.00024658,2]
[335165486,1723915844331,-380.0,0.00024658,2]
[335165487,1723915844341,-44.2417063,0.00024673,2]
[335165495,1723915846710,-223.0574835,0.00024193,2]
[335165496,1723915846723,-154.03383227,0.00024673,2]
[335165497,1723915846734,-9541.97870258,0.00024689,3]
[335165498,1723915846743,-15650.32588773,0.00024699,3]
[335165499,1723915846754,-341.06,0.00024699,3]
[335165500,1723915846772,-1079.32997976,0.00024699,3]
[335165501,1723915846785,-1507.10844194,0.00024699,3]
[335165519,1723915916042,229.69014172,0.00014519,2]
[335165520,1723915916073,2862.25318403,0.00014519,2]
[335165521,1723915933805,154.69833824,0.00014519,2]
[335165522,1723915940920,188.49095664,0.00014519,2]